lending/lending_fUSD_20250719
["ID","MTS","AMOUNT","RATE_DAILY","PERIOD"]
[373263036,1752925848991,-480.0,0.00019178,2]
[373263038,1752925849000,-588.55,0.00019178,2]
[373263040,1752925849010,-534.31,0.00019178,2]
[373263042,1752925849019,-480.0,0.00019178,2]
[373263044,1752925849028,-500.0,0.00019178,2]
[373263046,1752925849037,-500.0,0.00019178,2]
[373263048,1752925849047,-480.0,0.00019178,2]
[373263050,1752925849056,-505.27859836,0.00019178,2]
[373263052,1752925849065,-480.0,0.00019178,2]
[373263054,1752925849074,-480.0,0.00019178,2]
[373263056,1752925849084,-480.0,0.00019178,2]
[373263058,1752925849093,-342.44518369,0.00019178,2]
[373263060,1752925849102,-874.31,0.00019178,2]
[373263062,1752925849111,-480.0,0.00019178,2]
[373263064,1752925849121,-480.0,0.00019178,2]
[373263066,1752925849130,-5707.74,0.00019178,2]
[373263068,1752925849139,-480.0,0.00019178,2]
[373263070,1752925849150,-742.13,0.00019178,2]
[373263072,1752925849159,-1001.03,0.00019178,2]
[373263074,1752925849170,-480.0,0.00019178,2]
[373263076,1752925849179,-480.0,0.00019178,2]
[373263078,1752925849188,-480.0,0.00019178,2]
[373263080,1752925849198,-463.7715011,0.00019178,2]
[373263083,1752925849209,-466.47596652,0.00019178,2]
[373263084,1752925849221,-1089.17,0.00019178,2]
[373263087,1752925849230,-461.59895611,0.00019178,2]
[373263088,1752925849239,-624.93015354,0.00019178,2]
[373263090,1752925849249,-480.0,0.00019178,2]
[373263092,1752925849261,-480.0,0.00019178,2]
[373263094,1752925849270,-480.0,0.00019178,2]
[373263096,1752925849280,-480.0,0.00019178,2]
[373263098,1752925849290,-480.0,0.00019178,2]
[373263100,1752925849299,-460.0,0.00019178,2]
[373263102,1752925849310,-480.0,0.00019178,2]
[373263104,1752925849320,-480.0,0.00019178,2]
[373263106,1752925849329,-565.15986946,0.00019178,2]
[373263108,1752925849339,-480.0,0.00019178,2]
[373263110,1752925849348,-480.0,0.00019178,2]
[373263112,1752925849357,-480.0,0.00019178,2]
[373263114,1752925849367,-827.74,0.00019178,2]
[373263116,1752925849377,-480.0,0.00019178,2]
[373263119,1752925849386,-985.41,0.00019178,2]
[373263121,1752925849396,-480.0,0.00019178,2]
[373263123,1752925849406,-883.65,0.00019178,2]
[373263124,1752925849415,-480.0,0.00019178,2]
[373263126,1752925849424,-480.0,0.00019178,2]
[373263128,1752925849434,-480.0,0.00019178,2]
[373263131,1752925849444,-480.0,0.00019178,2]
[373263133,1752925849453,-480.0,0.00019178,2]
[373263135,1752925849462,-630.85,0.00019178,2]
[373263137,1752925849472,-480.0,0.00019178,2]
[373263138,1752925849482,-725.32,0.00019178,2]
[373263141,1752925849493,-480.0,0.00019178,2]
[373263143,1752925849503,-480.0,0.00019178,2]
[373263144,1752925849512,-460.0,0.00019178,2]
[373263146,1752925849521,-594.58,0.00019178,2]
[373263148,1752925849530,-546.59,0.00019178,2]
[373263150,1752925849541,-480.0,0.00019178,2]
[373263153,1752925849551,-460.0,0.00019178,2]
[373263154,1752925849561,-480.0,0.00019178,2]
[373263156,1752925849570,-480.0,0.00019178,2]
[373263158,1752925849580,-480.0,0.00019178,2]
[373263160,1752925849589,-961.48,0.00019178,2]
[373263162,1752925849599,-480.0,0.00019178,2]
[373263164,1752925849608,-462.79221423,0.00019178,2]
[373263166,1752925849618,-468.33068613,0.00019178,2]
[373263168,1752925849627,-541.94090602,0.00019178,2]
[373263170,1752925849637,-480.0,0.00019178,2]
[373263172,1752925849647,-480.0,0.00019178,2]
[373263174,1752925849656,-480.0,0.00019178,2]
[373263176,1752925849666,-480.0,0.00019178,2]
[373263178,1752925849675,-463.36603718,0.00019178,2]
[373263180,1752925849685,-480.0,0.00019178,2]
[373263182,1752925849695,-480.0,0.00019178,2]
[373263184,1752925849705,-480.0,0.00019178,2]
[373263186,1752925849715,-480.0,0.00019178,2]
[373263188,1752925849724,-480.0,0.00019178,2]
[373263190,1752925849733,-1312.32,0.00019178,2]
[373263192,1752925849743,-481.15,0.00019178,2]
[373263194,1752925849752,-480.0,0.00019178,2]
[373263197,1752925849763,-480.0,0.00019178,2]
[373263198,1752925849778,-480.0,0.00019178,2]
[373263200,1752925849788,-3316.07,0.00019178,2]
[373263202,1752925849801,-480.0,0.00019178,2]
[373263204,1752925849818,-493.61,0.00019178,2]
[373263206,1752925849827,-480.0,0.00019178,2]
[373263208,1752925849836,-480.0,0.00019178,2]
[373263210,1752925849846,-460.0,0.00019178,2]
[373263212,1752925849856,-480.0,0.00019178,2]
[373263214,1752925849865,-462.71613837,0.00019178,2]
[373263216,1752925849874,-480.0,0.00019178,2]
[373263218,1752925849883,-480.0,0.00019178,2]
[373263220,1752925849894,-480.0,0.00019178,2]
[373263222,1752925849903,-480.0,0.00019178,2]
[373263224,1752925849912,-461.37700266,0.00019178,2]
[373263226,1752925849922,-480.0,0.00019178,2]
[373263228,1752925849931,-480.0,0.00019178,2]
[373263230,1752925849940,-480.0,0.00019178,2]
[373263232,1752925849949,-1168.4,0.00019178,2]
[373263234,1752925849958,-480.0,0.00019178,2]
[373263236,1752925849968,-3075.77,0.00019178,2]
[373263238,1752925849977,-500.0,0.00019178,2]
[373263240,1752925849987,-500.0,0.00019178,2]
[373263242,1752925849997,-480.0,0.00019178,2]
[373263244,1752925850006,-500.0,0.00019178,2]
[373263246,1752925850016,-558.22,0.00019178,2]
[373263248,1752925850025,-500.0,0.00019178,2]
[373263250,1752925850035,-480.0,0.00019178,2]
[373263251,1752925850044,-480.0,0.00019178,2]
[373263252,1752925850054,-500.0,0.00019178,2]
[373263253,1752925850063,-480.0,0.00019178,2]
[373263254,1752925850072,-538.42,0.00019178,2]
[373263255,1752925850082,-463.53307824,0.00019178,2]
[373263256,1752925850091,-480.0,0.00019178,2]
[373263257,1752925850100,-2213.01,0.00019178,2]
[373263258,1752925850109,-480.0,0.00019178,2]
[373263259,1752925850119,-480.0,0.00019178,2]
[373263260,1752925850128,-480.0,0.00019178,2]
[373263261,1752925850138,-480.0,0.00019178,2]
[373263263,1752925850150,-460.0,0.00019178,2]
[373263265,1752925850159,-480.0,0.00019178,2]
[373263267,1752925850168,-617.33,0.00019178,2]
[373263269,1752925850178,-480.0,0.00019178,2]
[373263271,1752925850187,-480.0,0.00019178,2]
[373263273,1752925850197,-535.46828533,0.00019178,2]
[373263275,1752925850206,-480.0,0.00019178,2]
[373263277,1752925850217,-480.0,0.00019178,2]
[373263279,1752925850228,-480.0,0.00019178,2]
[373263281,1752925850237,-460.0,0.00019178,2]
[373263283,1752925850247,-480.0,0.00019178,2]
[373263285,1752925850256,-480.0,0.00019178,2]
[373263287,1752925850267,-480.0,0.00019178,2]
[373263290,1752925850290,-480.0,0.00019178,2]
[373263293,1752925850303,-1282.83,0.00019178,2]
[373263295,1752925850320,-480.0,0.00019178,2]
[373263298,1752925850338,-480.0,0.00019178,2]
[373263301,1752925850354,-480.0,0.00019178,2]
[373263304,1752925850367,-480.0,0.00019178,2]
[373263306,1752925850385,-480.0,0.00019178,2]
[373263309,1752925850403,-463.60907068,0.00019178,2]
[373263312,1752925850420,-480.0,0.00019178,2]
[373263314,1752925850435,-480.0,0.00019178,2]
[373263317,1752925850454,-480.0,0.00019178,2]
[373263320,1752925850470,-465.36036759,0.00019178,2]
[373263322,1752925850485,-480.0,0.00019178,2]
[373263325,1752925850503,-480.0,0.00019178,2]
[373263328,1752925850518,-480.0,0.00019178,2]
[373263330,1752925850531,-150.0,0.00019178,2]
[373263333,1752925850544,-480.0,0.00019178,2]
[373263335,1752925850562,-901.37,0.00019178,2]
[373263338,1752925850575,-480.0,0.00019178,2]
[373263340,1752925850588,-2877.27750001,0.00019178,2]
[373263343,1752925850601,-150.0,0.00019178,2]
[373263345,1752925850615,-480.0,0.00019178,2]
[373263347,1752925850628,-643.18,0.00019178,2]
[373263350,1752925850641,-480.0,0.00019178,2]
[373263352,1752925850656,-480.0,0.00019178,2]
[373263354,1752925850670,-480.0,0.00019178,2]
[373263357,1752925850683,-150.0,0.00019178,2]
[373263359,1752925850698,-480.0,0.00019178,2]
[373263362,1752925850712,-462.41951102,0.00019178,2]
[373263364,1752925850726,-1874.62,0.00019178,2]
[373263367,1752925850739,-480.0,0.00019178,2]
[373263369,1752925850752,-480.0,0.00019178,2]
[373263371,1752925850766,-480.0,0.00019178,2]
[373263374,1752925850779,-480.0,0.00019178,2]
[373263376,1752925850792,-480.0,0.00019178,2]
[373263379,1752925850806,-463.8283247,0.00019178,2]
[373263381,1752925850819,-480.0,0.00019178,2]
[373263383,1752925850833,-460.26196815,0.00019178,2]
[373263386,1752925850847,-480.0,0.00019178,2]
[373263388,1752925850861,-2423.29,0.00019178,2]
[373263391,1752925850876,-150.0,0.00019178,2]
[373263393,1752925850890,-461.71746364,0.00019178,2]
[373263396,1752925850905,-480.0,0.00019178,2]
[373263398,1752925850920,-480.0,0.00019178,2]
[373263401,1752925850933,-480.0,0.00019178,2]
[373263403,1752925850946,-480.0,0.00019178,2]
[373263405,1752925850959,-461.27209068,0.00019178,2]
[373263408,1752925850973,-480.0,0.00019178,2]
[373263410,1752925850987,-480.0,0.00019178,2]
[373263413,1752925851005,-480.0,0.00019178,2]
[373263416,1752925851019,-480.0,0.00019178,2]
[373263418,1752925851033,-200.0,0.00019178,2]
[373263421,1752925851046,-150.0,0.00019178,2]
[373263423,1752925851060,-175.75991634,0.00019178,2]
[373263425,1752925851079,-480.0,0.00019178,2]
[373263428,1752925851092,-480.0,0.00019178,2]
[373263430,1752925851106,-480.0,0.00019178,2]
[373263433,1752925851120,-480.0,0.00019178,2]
[373263435,1752925851135,-463.39769983,0.00019178,2]
[373263438,1752925851152,-480.0,0.00019178,2]
[373263440,1752925851167,-733.01,0.00019178,2]
[373263443,1752925851182,-480.0,0.00019178,2]
[373263445,1752925851198,-461.80796742,0.00019178,2]
[373263448,1752925851215,-570.78,0.00019178,2]
[373263450,1752925851232,-1019.51,0.00019178,2]
[373263453,1752925851247,-1074.29,0.00019178,2]
[373263455,1752925851263,-853.43,0.00019178,2]
[373263458,1752925851278,-480.0,0.00019178,2]
[373263460,1752925851292,-500.0,0.00019178,2]
[373263463,1752925851306,-769.55,0.00019178,2]
[373263465,1752925851320,-480.0,0.00019178,2]
[373263468,1752925851335,-465.07443882,0.00019178,2]
[373263470,1752925851349,-480.0,0.00019178,2]
[373263473,1752925851363,-391.86104939,0.00019178,2]
[373263475,1752925851377,-480.0,0.00019178,2]
[373263478,1752925851391,-1297.2,0.00019178,2]
[373263480,1752925851410,-480.0,0.00019178,2]
[373263483,1752925851425,-538.58156162,0.00019178,2]
[373263485,1752925851439,-480.0,0.00019178,2]
[373263488,1752925851453,-480.0,0.00019178,2]
[373263490,1752925851467,-480.0,0.00019178,2]
[373263493,1752925851483,-642.8,0.00019178,2]
[373263495,1752925851496,-1379.0,0.00019178,2]
[373263498,1752925851511,-480.0,0.00019178,2]
[373263500,1752925851525,-480.0,0.00019178,2]
[373263503,1752925851539,-480.0,0.00019178,2]
[373263505,1752925851552,-480.0,0.00019178,2]
[373263508,1752925851566,-460.96060506,0.00019178,2]
[373263510,1752925851580,-480.0,0.00019178,2]
[373263512,1752925851592,-480.0,0.00019178,2]
[373263515,1752925851606,-480.0,0.00019178,2]
[373263517,1752925851620,-480.0,0.00019178,2]
[373263520,1752925851634,-480.0,0.00019178,2]
[373263522,1752925851653,-480.0,0.00019178,2]
[373263525,1752925851666,-548.31,0.00019178,2]
[373263527,1752925851679,-480.0,0.00019178,2]
[373263530,1752925851693,-480.0,0.00019178,2]
[373263532,1752925851707,-464.93815144,0.00019178,2]
[373263534,1752925851720,-480.0,0.00019178,2]
[373263537,1752925851734,-460.0,0.00019178,2]
[373263539,1752925851748,-462.48838106,0.00019178,2]
[373263542,1752925851761,-1847.27,0.00019178,2]
[373263544,1752925851775,-480.0,0.00019178,2]
[373263547,1752925851788,-480.0,0.00019178,2]
[373263549,1752925851802,-480.0,0.00019178,2]
[373263552,1752925851816,-480.0,0.00019178,2]
[373263554,1752925851830,-460.69391595,0.00019178,2]
[373263557,1752925851843,-927.42,0.00019178,2]
[373263559,1752925851857,-4709.51,0.00019178,2]
[373263561,1752925851871,-393.9266624,0.00019178,2]
[373263564,1752925851884,-480.0,0.00019178,2]
[373263566,1752925851898,-150.0,0.00019178,2]
[373263568,1752925851911,-913.62,0.00019178,2]
[373263571,1752925851925,-464.5442377,0.00019178,2]
[373263573,1752925851940,-480.0,0.00019178,2]
[373263576,1752925851954,-150.0,0.00019178,2]
[373263578,1752925851967,-480.0,0.00019178,2]
[373263581,1752925851980,-480.0,0.00019178,2]
[373263583,1752925851993,-480.0,0.00019178,2]
[373263586,1752925852006,-506.89,0.00019178,2]
[373263588,1752925852019,-150.0,0.00019178,2]
[373263590,1752925852033,-480.0,0.00019178,2]
[373263593,1752925852048,-859.02,0.00019178,2]
[373263595,1752925852062,-1014.71299681,0.00019178,2]
[373263598,1752925852076,-150.0,0.00019178,2]
[373263600,1752925852090,-661.12,0.00019178,2]
[373263603,1752925852104,-661.12,0.00019178,2]
[373263605,1752925852118,-661.12,0.00019178,2]
[373263608,1752925852132,-592.0,0.00019178,2]
[373263610,1752925852145,-781.8,0.00019178,2]
[373263612,1752925852160,-480.0,0.00019178,2]
[373263615,1752925852174,-480.0,0.00019178,2]
[373263617,1752925852191,-661.12,0.00019178,2]
[373263620,1752925852204,-480.0,0.00019178,2]
[373263622,1752925852220,-466.68231923,0.00019178,2]
[373263624,1752925852235,-1631.07,0.00019178,2]
[373263626,1752925852244,-644.67,0.00019178,2]
[373263628,1752925852254,-480.0,0.00019178,2]
[373263630,1752925852264,-460.0,0.00019178,2]
[373263632,1752925852274,-480.0,0.00019178,2]
[373263634,1752925852283,-480.0,0.00019178,2]
[373263636,1752925852294,-480.0,0.00019178,2]
[373263638,1752925852304,-500.0,0.00019178,2]
[373263640,1752925852313,-507.62898277,0.00019178,2]
[373263642,1752925852323,-480.0,0.00019178,2]
[373263644,1752925852332,-480.0,0.00019178,2]
[373263675,1752925852718,-480.0,0.00019178,2]
[373263676,1752925852763,-596.88,0.00019178,2]
[373263677,1752925852782,-555.41,0.00019178,2]
[373263678,1752925852791,-480.0,0.00019178,2]
[373263679,1752925852802,-480.0,0.00019178,2]
[373263680,1752925852812,-480.0,0.00019178,2]
[373263681,1752925852823,-460.24502117,0.00019178,2]
[373263682,1752925852833,-480.0,0.00019178,2]
[373263683,1752925852842,-461.59027749,0.00019178,2]
[373263684,1752925852852,-480.0,0.00019178,2]
[373263685,1752925852862,-461.84498385,0.00019178,2]
[373263686,1752925852871,-480.0,0.00019178,2]
[373263687,1752925852880,-480.0,0.00019178,2]
[373263688,1752925852890,-480.0,0.00019178,2]
[373263689,1752925852900,-553.68,0.00019178,2]
[373263690,1752925852910,-480.0,0.00019178,2]
[373263691,1752925852920,-480.0,0.00019178,2]
[373263692,1752925852930,-480.0,0.00019178,2]
[373263693,1752925852940,-1000.0,0.00019178,2]
[373263694,1752925852950,-3337.6,0.00019178,2]
[373263695,1752925852960,-520.06,0.00019178,2]
[373263696,1752925852970,-480.0,0.00019178,2]
[373263697,1752925852979,-874.98,0.00019178,2]
[373263698,1752925852989,-480.0,0.00019178,2]
[373263699,1752925852999,-461.44316664,0.00019178,2]
[373263700,1752925853009,-480.0,0.00019178,2]
[373263701,1752925853019,-480.0,0.00019178,2]
[373263702,1752925853029,-480.0,0.00019178,2]
[373263703,1752925853038,-480.0,0.00019178,2]
[373263704,1752925853048,-480.0,0.00019178,2]
[373263705,1752925853058,-480.0,0.00019178,2]
[373263706,1752925853067,-1018.91,0.00019178,2]
[373263707,1752925853076,-480.0,0.00019178,2]
[373263708,1752925853086,-480.0,0.00019178,2]
[373263709,1752925853095,-461.82842817,0.00019178,2]
[373263710,1752925853105,-480.0,0.00019178,2]
[373263711,1752925853114,-491.69308632,0.00019178,2]
[373263712,1752925853124,-480.0,0.00019178,2]
[373263713,1752925853134,-480.0,0.00019178,2]
[373263714,1752925853142,-480.0,0.00019178,2]
[373263715,1752925853153,-575.14,0.00019178,2]
[373263716,1752925853163,-1603.56,0.00019178,2]
[373263717,1752925853172,-480.0,0.00019178,2]
[373263718,1752925853181,-480.0,0.00019178,2]
[373263719,1752925853191,-950.21,0.00019178,2]
[373263720,1752925853200,-480.0,0.00019178,2]
[373263721,1752925853210,-480.0,0.00019178,2]
[373263722,1752925853222,-716.19,0.00019178,2]
[373263723,1752925853231,-249.72154488,0.00019178,2]
[373263724,1752925853241,-480.0,0.00019178,2]
[373263725,1752925853250,-480.0,0.00019178,2]
[373263726,1752925853261,-458.63511713,0.00019178,2]
[373263727,1752925853270,-785.71,0.00019178,2]
[373263729,1752925853279,-300.0,0.00019178,2]
[373263730,1752925853288,-480.0,0.00019178,2]
[373263732,1752925853299,-441.39364778,0.00019178,2]
[373263734,1752925853309,-480.0,0.00019178,2]
[373263736,1752925853319,-463.28101084,0.00019178,2]
[373263738,1752925853328,-444.84196486,0.00019178,2]
[373263740,1752925853337,-653.01,0.00019178,2]
[373263742,1752925853347,-546.40631687,0.00019178,2]
[373263744,1752925853356,-496.05465946,0.00019178,2]
[373263746,1752925853365,-480.0,0.00019178,2]
[373263748,1752925853375,-480.0,0.00019178,2]
[373263750,1752925853385,-480.0,0.00019178,2]
[373263751,1752925853395,-480.0,0.00019178,2]
[373263753,1752925853406,-480.0,0.00019178,2]
[373263755,1752925853416,-802.07,0.00019178,2]
[373263757,1752925853426,-480.0,0.00019178,2]
[373263759,1752925853436,-1379.0,0.00019178,2]
[373263761,1752925853445,-468.28952098,0.00019178,2]
[373263763,1752925853456,-616.21,0.00019178,2]
[373263765,1752925853466,-480.0,0.00019178,2]
[373263767,1752925853475,-480.0,0.00019178,2]
[373263769,1752925853486,-462.59512799,0.00019178,2]
[373263771,1752925853495,-480.0,0.00019178,2]
[373263773,1752925853504,-480.0,0.00019178,2]
[373263775,1752925853514,-480.0,0.00019178,2]
[373263777,1752925853523,-480.0,0.00019178,2]
[373263779,1752925853532,-480.0,0.00019178,2]
[373263781,1752925853542,-480.0,0.00019178,2]
[373263783,1752925853551,-480.0,0.00019178,2]
[373263785,1752925853561,-461.41317454,0.00019178,2]
[373263787,1752925853570,-466.18085847,0.00019178,2]
[373263789,1752925853579,-462.61646683,0.00019178,2]
[373263790,1752925853589,-480.0,0.00019178,2]
[373263791,1752925853599,-622.48,0.00019178,2]
[373263792,1752925853610,-480.0,0.00019178,2]
[373263793,1752925853621,-480.0,0.00019178,2]
[373263794,1752925853631,-480.0,0.00019178,2]
[373263795,1752925853641,-480.0,0.00019178,2]
[373263796,1752925853652,-463.58856565,0.00019178,2]
[373263797,1752925853662,-341.30905139,0.00019178,2]
[373263798,1752925853672,-151.0,0.00019178,2]
[373263799,1752925853682,-210.67,0.00019178,2]
[373263800,1752925853692,-661.12,0.00019179,2]
[373263801,1752925853703,-986.59322029,0.00019184,2]
[373263802,1752925853712,-150.0,0.00019185,4]
[373263803,1752925853722,-150.0,0.0001919,4]
[373263804,1752925853731,-166.42,0.00019198,2]
[373263805,1752925853740,-150.0,0.00019235,4]
[373263806,1752925853749,-150.0,0.00019241,4]
[373263807,1752925853759,-15692.16892137,0.00019257,2]
[373263808,1752925853768,-150.0,0.00019268,4]
[373263809,1752925853778,-500.0,0.00019273,2]
[373263810,1752925853787,-500.36817039,0.00019273,2]
[373263811,1752925853797,-500.0,0.00019273,2]
[373263812,1752925853806,-500.0,0.00019273,2]
[373263813,1752925853816,-500.0,0.00019273,2]
[373263814,1752925853826,-500.0,0.00019273,2]
[373263815,1752925853836,-500.89647039,0.00019273,2]
[373263816,1752925853846,-500.0,0.00019273,2]
[373263817,1752925853855,-162.75119095,0.00019273,2]
[373263818,1752925853865,-159.6831507,0.00019273,2]
[373263819,1752925853875,-502.09937864,0.00019273,2]
[373263820,1752925853885,-200.54211399,0.00019273,2]
[373263821,1752925853895,-160.76586432,0.00019273,2]
[373263822,1752925853905,-500.0,0.00019273,2]
[373263823,1752925853914,-500.0,0.00019273,2]
[373263824,1752925853924,-159.70288604,0.00019273,2]
[373263825,1752925853934,-500.0,0.00019273,2]
[373263826,1752925853943,-317.93548839,0.00019273,2]
[373263827,1752925853953,-319.74779356,0.00019273,2]
[373263828,1752925853963,-159.76267791,0.00019273,2]
[373263829,1752925853973,-150.0,0.00019278,4]
[373263830,1752925853984,-150.0,0.0001928,4]
[373263831,1752925853993,-500.0,0.00019286,2]
[373263832,1752925854003,-377.01966748,0.00019286,2]
[373263833,1752925854012,-267.26634976,0.00019286,2]
[373263834,1752925854022,-500.0,0.00019286,2]
[373263835,1752925854032,-500.0,0.00019286,2]
[373263836,1752925854041,-500.0,0.00019286,2]
[373263837,1752925854050,-500.0,0.00019286,2]
[373263838,1752925854060,-1639.68,0.00019286,2]
[373263839,1752925854069,-1639.68,0.00019286,2]
[373263840,1752925854079,-500.0,0.00019286,2]
[373263841,1752925854088,-500.0,0.00019286,2]
[373263842,1752925854098,-1721.04,0.00019286,2]
[373263843,1752925854107,-1721.04,0.00019286,2]
[373263844,1752925854117,-500.0,0.00019286,2]
[373263845,1752925854126,-500.0,0.00019286,2]
[373263846,1752925854135,-2456.39,0.00019286,2]
[373263847,1752925854144,-2456.39,0.00019286,2]
[373263848,1752925854155,-3490.71,0.00019286,2]
[373263849,1752925854164,-500.0,0.00019286,2]
[373263850,1752925854174,-500.0,0.00019286,2]
[373263851,1752925854183,-150.0,0.00019286,2]
[373263852,1752925854192,-661.12,0.00019286,2]
[373263853,1752925854201,-661.12,0.00019286,2]
[373263854,1752925854211,-986.59322029,0.00019287,2]
[373263855,1752925854224,-151.0,0.00019287,2]
[373263856,1752925854233,-151.0,0.00019287,2]
[373263857,1752925854242,-480.0,0.00019287,2]
[373263858,1752925854253,-151.0,0.00019287,2]
[373263859,1752925854263,-480.0,0.00019287,2]
[373263860,1752925854273,-480.0,0.00019287,2]
[373263861,1752925854283,-440.0,0.00019287,2]
[373263862,1752925854292,-480.0,0.00019287,2]
[373263863,1752925854303,-480.0,0.00019287,2]
[373263864,1752925854313,-480.0,0.00019287,2]
[373263865,1752925854322,-480.0,0.00019287,2]
[373263866,1752925854332,-480.0,0.00019287,2]
[373263867,1752925854341,-151.0,0.00019287,2]
[373263868,1752925854351,-480.0,0.00019287,2]
[373263869,1752925854361,-480.0,0.00019287,2]
[373263870,1752925854370,-480.0,0.00019287,2]
[373263871,1752925854380,-480.0,0.00019287,2]
[373263872,1752925854390,-441.64343599,0.00019287,2]
[373263873,1752925854401,-480.0,0.00019287,2]
[373263874,1752925854410,-317.7400419,0.00019287,2]
[373263875,1752925854420,-480.0,0.00019287,2]
[373263876,1752925854429,-480.0,0.00019287,2]
[373263877,1752925854439,-440.0,0.00019287,2]
[373263878,1752925854449,-480.0,0.00019287,2]
[373263879,1752925854459,-444.77880481,0.00019287,2]
[373263880,1752925854469,-480.0,0.00019287,2]
[373263881,1752925854479,-480.0,0.00019287,2]
[373263882,1752925854488,-480.0,0.00019287,2]
[373263883,1752925854498,-480.0,0.00019287,2]
[373263884,1752925854508,-480.0,0.00019287,2]
[373263885,1752925854517,-480.0,0.00019287,2]
[373263886,1752925854526,-480.0,0.00019287,2]
[373263887,1752925854536,-480.0,0.00019287,2]
[373263888,1752925854546,-480.0,0.00019287,2]
[373263889,1752925854555,-441.63068038,0.00019287,2]
[373263890,1752925854565,-480.0,0.00019287,2]
[373263891,1752925854575,-422.44092138,0.00019287,2]
[373263892,1752925854584,-440.0,0.00019287,2]
[373263893,1752925854594,-444.6841842,0.00019287,2]
[373263894,1752925854603,-480.0,0.00019287,2]
[373263895,1752925854613,-448.14117431,0.00019287,2]
[373263896,1752925854622,-442.40546948,0.00019287,2]
[373263897,1752925854632,-480.0,0.00019287,2]
[373263898,1752925854642,-442.9387547,0.00019287,2]
[373263899,1752925854652,-441.76521709,0.00019287,2]
[373263900,1752925854662,-441.63004386,0.00019287,2]
[373263901,1752925854671,-480.0,0.00019287,2]
[373263902,1752925854681,-453.27783998,0.00019287,2]
[373263903,1752925854691,-463.96599952,0.00019287,2]
[373263904,1752925854700,-480.0,0.00019287,2]
[373263905,1752925854711,-480.0,0.00019287,2]
[373263906,1752925854721,-480.0,0.00019287,2]
[373263907,1752925854732,-443.09618594,0.00019287,2]
[373263908,1752925854742,-445.37326541,0.00019287,2]
[373263909,1752925854752,-480.0,0.00019287,2]
[373263910,1752925854763,-480.0,0.00019287,2]
[373263911,1752925854773,-480.0,0.00019287,2]
[373263912,1752925854783,-480.0,0.00019287,2]
[373263913,1752925854794,-480.0,0.00019287,2]
[373263914,1752925854804,-444.17008823,0.00019287,2]
[373263915,1752925854814,-480.0,0.00019287,2]
[373263916,1752925854823,-391.72209076,0.00019287,2]
[373263917,1752925854833,-443.39729065,0.00019287,2]
[373263918,1752925854843,-155.99130695,0.00019287,2]
[373263919,1752925854853,-441.90815509,0.00019287,2]
[373263920,1752925854862,-480.0,0.00019287,2]
[373263921,1752925854872,-480.0,0.00019287,2]
[373263922,1752925854882,-480.0,0.00019287,2]
[373263923,1752925854891,-443.03918567,0.00019287,2]
[373263924,1752925854902,-480.0,0.00019287,2]
[373263925,1752925854912,-480.0,0.00019287,2]
[373263926,1752925854922,-480.0,0.00019287,2]